[Event "Late-Titled-Tuesday-Blitz-April-30-2024"]
[Site "Chess.com"]
[Date "2024.04.30"]
[Round "8"]
[White "Artem_Koval"]
[Black "georgpapi"]
[Result "1-0"]
[WhiteElo "2548"]
[BlackElo "2384"]
[TimeControl "180+1"]
[EndTime "15:28:31 PDT"]
[Termination "Artem_Koval won by checkmate"]

1. Nf3 {[%clk 0:02:50.6]} 1... Nf6 {[%clk 0:02:58.7]} 2. b3 {[%clk 0:02:51.1]}
2... g6 {[%clk 0:02:58.8]} 3. Bb2 {[%clk 0:02:51.4]} 3... Bg7 {[%clk 0:02:59.2]}
4. d4 {[%clk 0:02:47.5]} 4... O-O {[%clk 0:02:56.8]} 5. e3 {[%clk 0:02:48.1]}
5... d5 {[%clk 0:02:56.2]} 6. c4 {[%clk 0:02:47.6]} 6... c6 {[%clk 0:02:57.1]}
7. Nc3 {[%clk 0:02:47.5]} 7... Bf5 {[%clk 0:02:57]} 8. Be2 {[%clk 0:02:44]} 8...
Ne4 {[%clk 0:02:56.7]} 9. O-O {[%clk 0:02:44]} 9... Nd7 {[%clk 0:02:55.7]} 10.
Nxe4 {[%clk 0:02:34.9]} 10... Bxe4 {[%clk 0:02:55.4]} 11. Nd2 {[%clk 0:02:35.6]}
11... Bf5 {[%clk 0:02:55]} 12. Bf3 {[%clk 0:02:34.4]} 12... Nf6 {[%clk
0:02:53.7]} 13. Re1 {[%clk 0:02:34.5]} 13... Re8 {[%clk 0:02:51.1]} 14. Rc1
{[%clk 0:02:32.7]} 14... Qa5 {[%clk 0:02:41.1]} 15. a3 {[%clk 0:02:32.4]} 15...
Ne4 {[%clk 0:02:41]} 16. b4 {[%clk 0:02:27.9]} 16... Qd8 {[%clk 0:02:21.6]} 17.
Nxe4 {[%clk 0:02:07.6]} 17... dxe4 {[%clk 0:02:20.5]} 18. Be2 {[%clk 0:02:08.1]}
18... e5 {[%clk 0:02:20.1]} 19. d5 {[%clk 0:01:54.2]} 19... a5 {[%clk
0:02:12.1]} 20. d6 {[%clk 0:01:49.5]} 20... Qg5 {[%clk 0:01:42.9]} 21. c5 {[%clk
0:01:44.4]} 21... h5 {[%clk 0:01:39.7]} 22. Kh1 {[%clk 0:01:33.8]} 22... h4
{[%clk 0:01:39.1]} 23. h3 {[%clk 0:01:34.4]} 23... Qf6 {[%clk 0:01:19.9]} 24. b5
{[%clk 0:01:26.1]} 24... Bd7 {[%clk 0:01:12]} 25. bxc6 {[%clk 0:01:20.4]} 25...
Bxc6 {[%clk 0:01:01.3]} 26. Rf1 {[%clk 0:01:20.5]} 26... Qg5 {[%clk 0:01:00.2]}
27. Bc4 {[%clk 0:01:16.3]} 27... Rad8 {[%clk 0:00:17.3]} 28. Bd5 {[%clk
0:01:10.5]} 28... Kh7 {[%clk 0:00:06.5]} 29. Bxc6 {[%clk 0:00:52.6]} 29... bxc6
{[%clk 0:00:07.4]} 30. Bc3 {[%clk 0:00:50.1]} 30... f5 {[%clk 0:00:04]} 31. Bxa5
{[%clk 0:00:45.9]} 31... Rd7 {[%clk 0:00:04.3]} 32. Qa4 {[%clk 0:00:39.9]} 32...
Rc8 {[%clk 0:00:03.9]} 33. Bc7 {[%clk 0:00:39.9]} 33... f4 {[%clk 0:00:02.4]}
34. Qxe4 {[%clk 0:00:36.8]} 34... fxe3 {[%clk 0:00:01.3]} 35. fxe3 {[%clk
0:00:34.6]} 35... Rcxc7 {[%clk 0:00:00.8]} 36. dxc7 {[%clk 0:00:33.3]} 36...
Rxc7 {[%clk 0:00:01.7]} 37. a4 {[%clk 0:00:29.7]} 37... Ra7 {[%clk 0:00:01.8]}
38. Qxc6 {[%clk 0:00:28.3]} 38... Ra5 {[%clk 0:00:00.9]} 39. Qe4 {[%clk
0:00:26.4]} 39... Ra7 {[%clk 0:00:00.7]} 40. c6 {[%clk 0:00:26.7]} 40... Rc7
{[%clk 0:00:00.8]} 41. a5 {[%clk 0:00:26.3]} 41... Qd8 {[%clk 0:00:01]} 42. a6
{[%clk 0:00:26.3]} 42... Qa8 {[%clk 0:00:01.6]} 43. Qxh4+ {[%clk 0:00:24.3]}
43... Kg8 {[%clk 0:00:01.8]} 44. Qc4+ {[%clk 0:00:24.2]} 44... Kh7 {[%clk
0:00:02.1]} 45. Rf7 {[%clk 0:00:22.2]} 45... Rxf7 {[%clk 0:00:02.6]} 46. Qxf7
{[%clk 0:00:23.1]} 46... Qxa6 {[%clk 0:00:03.5]} 47. c7 {[%clk 0:00:22.6]} 47...
e4 {[%clk 0:00:02.8]} 48. c8=Q {[%clk 0:00:22.5]} 48... Qxc8 {[%clk 0:00:02.8]}
49. Rxc8 {[%clk 0:00:22.1]} 49... g5 {[%clk 0:00:03.7]} 50. Rg8 {[%clk
0:00:21.8]} 50... g4 {[%clk 0:00:04.6]} 51. Qxg7# {[%clk 0:00:22.1]} 1-0

[Event "Late-Titled-Tuesday-Blitz-April-30-2024"]
[Site "Chess.com"]
[Date "2024.04.30"]
[Round "8"]
[White "burritus"]
[Black "Romkachess"]
[Result "0-1"]
[WhiteElo "2426"]
[BlackElo "2626"]
[TimeControl "180+1"]
[EndTime "15:28:32 PDT"]
[Termination "Romkachess won by checkmate"]

1. Nf3 {[%clk 0:03:00.6]} 1... Nf6 {[%clk 0:02:59.1]} 2. c4 {[%clk 0:03:00.1]}
2... e6 {[%clk 0:02:58.4]} 3. g3 {[%clk 0:02:59.7]} 3... b6 {[%clk 0:02:58.4]}
4. Bg2 {[%clk 0:02:59.8]} 4... Bb7 {[%clk 0:02:51.1]} 5. O-O {[%clk 0:02:59.9]}
5... Be7 {[%clk 0:02:47.8]} 6. Nc3 {[%clk 0:02:59.3]} 6... O-O {[%clk
0:02:45.6]} 7. Re1 {[%clk 0:02:59.2]} 7... d5 {[%clk 0:02:44.8]} 8. cxd5 {[%clk
0:02:57.8]} 8... Nxd5 {[%clk 0:02:42.3]} 9. e4 {[%clk 0:02:54.6]} 9... Nxc3
{[%clk 0:02:35]} 10. bxc3 {[%clk 0:02:55.5]} 10... c5 {[%clk 0:02:34.5]} 11. d4
{[%clk 0:02:55.3]} 11... Nc6 {[%clk 0:02:32]} 12. d5 {[%clk 0:02:22.9]} 12...
Na5 {[%clk 0:02:27.8]} 13. Qc2 {[%clk 0:02:06]} 13... exd5 {[%clk 0:02:24.6]}
14. exd5 {[%clk 0:02:05.9]} 14... Bf6 {[%clk 0:02:24.4]} 15. Bf4 {[%clk
0:01:57.7]} 15... Qxd5 {[%clk 0:02:12.4]} 16. Rad1 {[%clk 0:01:56.8]} 16... Qh5
{[%clk 0:02:07.3]} 17. Ng5 {[%clk 0:01:35.7]} 17... Bxg2 {[%clk 0:01:54.4]} 18.
g4 {[%clk 0:01:36]} 18... Qh4 {[%clk 0:01:39.9]} 19. Qf5 {[%clk 0:00:51.7]}
19... Bb7 {[%clk 0:01:21.8]} 20. Rd3 {[%clk 0:00:40.5]} 20... Rfe8 {[%clk
0:00:32]} 21. Rc1 {[%clk 0:00:40.1]} 21... Bxg5 {[%clk 0:00:20.5]} 22. Bxg5
{[%clk 0:00:40]} 22... g6 {[%clk 0:00:21.1]} 23. Qf4 {[%clk 0:00:15.3]} 23...
Re4 {[%clk 0:00:06.2]} 24. Qxf7+ {[%clk 0:00:15.2]} 24... Kxf7 {[%clk
0:00:06.1]} 25. Bxh4 {[%clk 0:00:16.1]} 25... Ke6 {[%clk 0:00:04.1]} 26. Bg3
{[%clk 0:00:15.6]} 26... c4 {[%clk 0:00:03.4]} 27. Rd6+ {[%clk 0:00:15.1]} 27...
Ke7 {[%clk 0:00:04]} 28. Rcd1 {[%clk 0:00:13.9]} 28... Bc6 {[%clk 0:00:04.4]}
29. f3 {[%clk 0:00:12.3]} 29... Re2 {[%clk 0:00:04]} 30. Bh4+ {[%clk 0:00:13]}
30... Kf7 {[%clk 0:00:04.2]} 31. Rf6+ {[%clk 0:00:09.9]} 31... Kg7 {[%clk
0:00:04.5]} 32. Bf2 {[%clk 0:00:10.2]} 32... Kxf6 {[%clk 0:00:03.7]} 33. Bd4+
{[%clk 0:00:10.6]} 33... Kf7 {[%clk 0:00:04]} 34. Rf1 {[%clk 0:00:09.5]} 34...
Rae8 {[%clk 0:00:04.5]} 35. h4 {[%clk 0:00:10.1]} 35... Rxa2 {[%clk 0:00:04.5]}
36. h5 {[%clk 0:00:10]} 36... Ree2 {[%clk 0:00:05.1]} 37. hxg6+ {[%clk
0:00:10.9]} 37... hxg6 {[%clk 0:00:06]} 38. Rd1 {[%clk 0:00:09.8]} 38... Rg2+
{[%clk 0:00:05.2]} 39. Kf1 {[%clk 0:00:10.6]} 39... Bxf3 {[%clk 0:00:06.1]} 40.
Rb1 {[%clk 0:00:07.4]} 40... Nb3 {[%clk 0:00:06.3]} 41. Bg1 {[%clk 0:00:05.4]}
41... Nd2+ {[%clk 0:00:05.9]} 42. Ke1 {[%clk 0:00:04.6]} 42... Re2+ {[%clk
0:00:06.8]} 43. Kd1 {[%clk 0:00:04]} 43... Ne4 {[%clk 0:00:07.3]} 44. Kc1 {[%clk
0:00:04.1]} 44... Rec2# {[%clk 0:00:06.5]} 0-1

[Event "Late-Titled-Tuesday-Blitz-April-30-2024"]
[Site "Chess.com"]
[Date "2024.04.30"]
[Round "8"]
[White "Bryanl106"]
[Black "NoSpaghettiForYou"]
[Result "1-0"]
[WhiteElo "2691"]
[BlackElo "2512"]
[TimeControl "180+1"]
[EndTime "15:28:35 PDT"]
[Termination "Bryanl106 won by resignation"]

1. e4 {[%clk 0:02:58.4]} 1... c5 {[%clk 0:03:00]} 2. Nf3 {[%clk 0:02:58]} 2...
Nc6 {[%clk 0:03:00.4]} 3. d4 {[%clk 0:02:57.9]} 3... cxd4 {[%clk 0:03:00.3]} 4.
Nxd4 {[%clk 0:02:58.8]} 4... Nf6 {[%clk 0:03:00.8]} 5. Nc3 {[%clk 0:02:59.3]}
5... h5 {[%clk 0:03:01.4]} 6. Bg5 {[%clk 0:02:55.4]} 6... Qa5 {[%clk 0:03:00.9]}
7. Bxf6 {[%clk 0:02:52.2]} 7... gxf6 {[%clk 0:03:01.8]} 8. Qd2 {[%clk
0:02:50.6]} 8... Bh6 {[%clk 0:02:54.8]} 9. Qd3 {[%clk 0:02:48.2]} 9... Ne5
{[%clk 0:02:27.1]} 10. Qd1 {[%clk 0:02:46.2]} 10... a6 {[%clk 0:02:14.7]} 11.
Be2 {[%clk 0:02:43.3]} 11... b5 {[%clk 0:02:06.1]} 12. O-O {[%clk 0:02:41.6]}
12... Bb7 {[%clk 0:02:00]} 13. Nd5 {[%clk 0:02:35]} 13... e6 {[%clk 0:01:44.1]}
14. Nxf6+ {[%clk 0:02:30.1]} 14... Ke7 {[%clk 0:01:43.8]} 15. Nxh5 {[%clk
0:02:31]} 15... Bxe4 {[%clk 0:01:42.8]} 16. Ng3 {[%clk 0:02:29.2]} 16... Bb7
{[%clk 0:01:34.4]} 17. Re1 {[%clk 0:02:29.5]} 17... Bf4 {[%clk 0:01:24.4]} 18.
Nh5 {[%clk 0:02:27.8]} 18... Ng6 {[%clk 0:00:45.8]} 19. Bf3 {[%clk 0:02:23.8]}
19... Qc7 {[%clk 0:00:39.2]} 20. Bxb7 {[%clk 0:02:04.8]} 20... Bxh2+ {[%clk
0:00:31.3]} 21. Kf1 {[%clk 0:01:59.8]} 21... Qxb7 {[%clk 0:00:29.3]} 22. Qg4
{[%clk 0:01:48.4]} 22... Be5 {[%clk 0:00:26.5]} 23. Rxe5 {[%clk 0:01:24.4]}
23... Nxe5 {[%clk 0:00:23]} 24. Qg5+ {[%clk 0:01:24.5]} 24... Kd6 {[%clk
0:00:23.4]} 25. Rd1 {[%clk 0:01:24.5]} 25... Rag8 {[%clk 0:00:17.6]} 26. Nf3+
{[%clk 0:01:23.8]} 26... Kc6 {[%clk 0:00:15.5]} 27. Nxe5+ {[%clk 0:01:14.4]}
27... Kb6 {[%clk 0:00:10.6]} 28. Qe3+ {[%clk 0:01:14.3]} 28... Ka5 {[%clk
0:00:09.8]} 29. b4+ {[%clk 0:01:11]} 29... Kxb4 {[%clk 0:00:10.4]} 30. Qd2+
{[%clk 0:00:51.5]} 30... Ka4 {[%clk 0:00:09.8]} 31. Ng3 {[%clk 0:00:25.1]} 31...
Rh4 {[%clk 0:00:05.3]} 32. Nd3 {[%clk 0:00:18.5]} 32... Qd5 {[%clk 0:00:03.4]}
33. Qe3 {[%clk 0:00:14.9]} 33... Ka5 {[%clk 0:00:02.2]} 34. Kg1 {[%clk
0:00:13.3]} 34... Rgg4 {[%clk 0:00:01.4]} 35. Qe1+ {[%clk 0:00:12.6]} 35... Kb6
{[%clk 0:00:01.6]} 36. Nb4 {[%clk 0:00:12.3]} 36... Qc5 {[%clk 0:00:01.6]} 37.
Nd3 {[%clk 0:00:11.8]} 37... Qf5 {[%clk 0:00:00.9]} 38. Qe3+ {[%clk 0:00:12]}
38... Kb7 {[%clk 0:00:00.5]} 39. Nc5+ {[%clk 0:00:12.4]} 39... Kc7 {[%clk
0:00:00.8]} 40. Nxd7 {[%clk 0:00:09]} 40... Kc8 {[%clk 0:00:00.8]} 41. Nb6+
{[%clk 0:00:07.5]} 41... Kb7 {[%clk 0:00:00.8]} 42. Nd7 {[%clk 0:00:06.2]} 42...
Kc7 {[%clk 0:00:01.3]} 43. Ne5 {[%clk 0:00:05.8]} 43... Qf6 {[%clk 0:00:01.7]}
44. Nxg4 {[%clk 0:00:06.1]} 44... Rxg4 {[%clk 0:00:01.8]} 45. Qc5+ {[%clk
0:00:06.6]} 45... Kb8 {[%clk 0:00:02.4]} 46. Qb6+ {[%clk 0:00:06]} 46... Kc8
{[%clk 0:00:03]} 47. Qc6+ {[%clk 0:00:06.6]} 47... Kb8 {[%clk 0:00:03.7]} 48.
Qd6+ {[%clk 0:00:04.9]} 48... Kc8 {[%clk 0:00:04.1]} 49. Qd7+ {[%clk 0:00:04.5]}
49... Kb8 {[%clk 0:00:04.7]} 50. Qd8+ {[%clk 0:00:05.1]} 50... Kb7 {[%clk
0:00:05.2]} 51. Qxf6 {[%clk 0:00:05.4]} 1-0

[Event "Late-Titled-Tuesday-Blitz-April-30-2024"]
[Site "Chess.com"]
[Date "2024.04.30"]
[Round "8"]
[White "wild3000"]
[Black "dealshark"]
[Result "1-0"]
[WhiteElo "2495"]
[BlackElo "2313"]
[TimeControl "180+1"]
[EndTime "15:28:35 PDT"]
[Termination "wild3000 won by resignation"]

1. d4 {[%clk 0:02:59.7]} 1... d5 {[%clk 0:03:00.2]} 2. c4 {[%clk 0:02:58.9]}
2... e6 {[%clk 0:03:01.1]} 3. Nc3 {[%clk 0:02:55]} 3... c5 {[%clk 0:03:01.2]} 4.
cxd5 {[%clk 0:02:54.7]} 4... exd5 {[%clk 0:03:02.1]} 5. Nf3 {[%clk 0:02:52.6]}
5... Nc6 {[%clk 0:03:01.1]} 6. Bf4 {[%clk 0:02:51.5]} 6... Nf6 {[%clk
0:03:00.2]} 7. e3 {[%clk 0:02:51.4]} 7... Be7 {[%clk 0:02:50.5]} 8. dxc5 {[%clk
0:02:50.9]} 8... Bxc5 {[%clk 0:02:50]} 9. Be2 {[%clk 0:02:50.5]} 9... O-O {[%clk
0:02:49.7]} 10. O-O {[%clk 0:02:50.4]} 10... Bg4 {[%clk 0:02:41.8]} 11. Rc1
{[%clk 0:02:49.7]} 11... Rc8 {[%clk 0:02:17.5]} 12. h3 {[%clk 0:02:47.8]} 12...
Bh5 {[%clk 0:02:16.7]} 13. Nb5 {[%clk 0:02:46.9]} 13... Qb6 {[%clk 0:02:10.4]}
14. a3 {[%clk 0:02:33.7]} 14... a6 {[%clk 0:02:06.1]} 15. Nd6 {[%clk 0:02:10.8]}
15... Bxd6 {[%clk 0:02:02.2]} 16. Bxd6 {[%clk 0:02:10.6]} 16... Rfd8 {[%clk
0:02:00.1]} 17. Bc5 {[%clk 0:02:04.7]} 17... Qc7 {[%clk 0:01:49.5]} 18. b4
{[%clk 0:02:02.6]} 18... Ne4 {[%clk 0:01:49.3]} 19. Bd4 {[%clk 0:02:01.7]} 19...
Qe7 {[%clk 0:01:43.3]} 20. Bb2 {[%clk 0:02:00.1]} 20... h6 {[%clk 0:01:33.6]}
21. Nd4 {[%clk 0:01:55.3]} 21... Bxe2 {[%clk 0:01:26.8]} 22. Nxe2 {[%clk
0:01:53.6]} 22... Ne5 {[%clk 0:01:21.2]} 23. Rxc8 {[%clk 0:01:51.8]} 23... Rxc8
{[%clk 0:01:20.2]} 24. Qxd5 {[%clk 0:01:51.3]} 24... Nc4 {[%clk 0:01:12.6]} 25.
Qd4 {[%clk 0:01:47.2]} 25... Nxb2 {[%clk 0:01:05.5]} 26. Qxb2 {[%clk 0:01:48.1]}
26... Qg5 {[%clk 0:00:58.4]} 27. Nd4 {[%clk 0:01:44.6]} 27... Qf6 {[%clk
0:00:50.2]} 28. f3 {[%clk 0:01:30.8]} 28... Ng3 {[%clk 0:00:48.9]} 29. Rc1
{[%clk 0:01:24.6]} 29... Re8 {[%clk 0:00:47.1]} 30. Qf2 {[%clk 0:01:21.9]} 30...
Nf5 {[%clk 0:00:34]} 31. Nxf5 {[%clk 0:01:20.1]} 31... Qxf5 {[%clk 0:00:34.6]}
32. e4 {[%clk 0:01:19.2]} 32... Qf4 {[%clk 0:00:31.3]} 33. Rd1 {[%clk
0:01:16.8]} 33... Rc8 {[%clk 0:00:29.8]} 34. Qd2 {[%clk 0:01:08.5]} 34... Qe5
{[%clk 0:00:27.2]} 35. Qd4 {[%clk 0:01:03.7]} 35... Qf4 {[%clk 0:00:24.3]} 36.
e5 {[%clk 0:00:56.2]} 36... Qxd4+ {[%clk 0:00:19.6]} 37. Rxd4 {[%clk 0:00:56.1]}
37... Rc3 {[%clk 0:00:20.5]} 38. Rd7 {[%clk 0:00:55.4]} 38... Rxa3 {[%clk
0:00:19.3]} 39. Rxb7 {[%clk 0:00:55.3]} 39... Rb3 {[%clk 0:00:19.8]} 40. Rb6
{[%clk 0:00:52.1]} 40... a5 {[%clk 0:00:18.8]} 41. bxa5 {[%clk 0:00:51.7]} 41...
Ra3 {[%clk 0:00:18.8]} 42. a6 {[%clk 0:00:50.5]} 42... Kf8 {[%clk 0:00:19.4]}
43. e6 {[%clk 0:00:45.1]} 43... fxe6 {[%clk 0:00:18.2]} 44. Rxe6 {[%clk
0:00:44.8]} 44... Kf7 {[%clk 0:00:19.1]} 45. Rb6 {[%clk 0:00:44.7]} 45... Ra2
{[%clk 0:00:19.2]} 46. h4 {[%clk 0:00:43.7]} 46... h5 {[%clk 0:00:18.2]} 47. Kh2
{[%clk 0:00:43.4]} 47... g6 {[%clk 0:00:18]} 48. Kg3 {[%clk 0:00:43]} 48... Kg7
{[%clk 0:00:18.1]} 49. Rb7+ {[%clk 0:00:42.1]} 49... Kf6 {[%clk 0:00:17.5]} 50.
a7 {[%clk 0:00:41.1]} 50... Ra4 {[%clk 0:00:17.5]} 51. Kf2 {[%clk 0:00:40.5]}
51... Ra3 {[%clk 0:00:17.3]} 52. Ke2 {[%clk 0:00:40.2]} 52... Ra4 {[%clk
0:00:17.7]} 53. Kd3 {[%clk 0:00:39.7]} 53... Ra3+ {[%clk 0:00:15.4]} 54. Kc4
{[%clk 0:00:39.5]} 54... Ra6 {[%clk 0:00:14.6]} 55. Kb5 {[%clk 0:00:39.4]} 55...
Ra1 {[%clk 0:00:14.6]} 56. Rb6+ {[%clk 0:00:38.2]} 56... Kf7 {[%clk 0:00:14.2]}
57. Ra6 {[%clk 0:00:38.2]} 57... Rb1+ {[%clk 0:00:14.2]} 58. Kc5 {[%clk
0:00:37.3]} 58... Rc1+ {[%clk 0:00:14.8]} 59. Kd5 {[%clk 0:00:36.9]} 59... Rd1+
{[%clk 0:00:15.1]} 60. Ke5 {[%clk 0:00:37]} 60... Re1+ {[%clk 0:00:13.6]} 61.
Kf4 {[%clk 0:00:37]} 1-0

[Event "Late-Titled-Tuesday-Blitz-April-30-2024"]
[Site "Chess.com"]
[Date "2024.04.30"]
[Round "8"]
[White "Hikaru"]
[Black "Kobalia"]
[Result "1-0"]
[WhiteElo "3202"]
[BlackElo "2797"]
[TimeControl "180+1"]
[EndTime "15:28:36 PDT"]
[Termination "Hikaru won on time"]

1. h4 {[%clk 0:03:00.9]} 1... d5 {[%clk 0:02:59.4]} 2. g3 {[%clk 0:03:01]} 2...
Nc6 {[%clk 0:02:59.5]} 3. d4 {[%clk 0:03:01]} 3... e5 {[%clk 0:02:59.2]} 4. c3
{[%clk 0:03:01.3]} 4... Nf6 {[%clk 0:02:57.5]} 5. Bg2 {[%clk 0:03:01.1]} 5...
Be7 {[%clk 0:02:57.2]} 6. Bg5 {[%clk 0:03:00.4]} 6... exd4 {[%clk 0:02:51.8]} 7.
cxd4 {[%clk 0:03:01.3]} 7... h6 {[%clk 0:02:52]} 8. Bxf6 {[%clk 0:03:01.4]} 8...
Bxf6 {[%clk 0:02:52.3]} 9. e3 {[%clk 0:03:02.1]} 9... Ne7 {[%clk 0:02:52.5]} 10.
Bh3 {[%clk 0:02:58.1]} 10... O-O {[%clk 0:02:46.6]} 11. Nc3 {[%clk 0:02:56.9]}
11... c5 {[%clk 0:02:42.4]} 12. Nge2 {[%clk 0:02:56]} 12... Bxh3 {[%clk
0:02:40.8]} 13. Rxh3 {[%clk 0:02:56.8]} 13... Qb6 {[%clk 0:02:39.4]} 14. Qd2
{[%clk 0:02:53.1]} 14... cxd4 {[%clk 0:02:38.7]} 15. exd4 {[%clk 0:02:53.4]}
15... Rad8 {[%clk 0:02:36.3]} 16. g4 {[%clk 0:02:53.3]} 16... Nc6 {[%clk
0:02:32.7]} 17. Rd1 {[%clk 0:02:53.1]} 17... Rfe8 {[%clk 0:02:22.9]} 18. Kf1
{[%clk 0:02:50.2]} 18... Be7 {[%clk 0:02:18.1]} 19. g5 {[%clk 0:02:37.9]} 19...
hxg5 {[%clk 0:02:11.9]} 20. hxg5 {[%clk 0:02:38.8]} 20... Bb4 {[%clk 0:02:11.8]}
21. Qf4 {[%clk 0:02:33.2]} 21... Ne7 {[%clk 0:02:06.7]} 22. Ng3 {[%clk
0:02:22.7]} 22... Ng6 {[%clk 0:02:02.6]} 23. Qf3 {[%clk 0:02:22.2]} 23... Bxc3
{[%clk 0:02:00.9]} 24. bxc3 {[%clk 0:02:22.4]} 24... Qc7 {[%clk 0:01:37.3]} 25.
Qh5 {[%clk 0:01:55.1]} 25... Qf4 {[%clk 0:01:21.5]} 26. Kg2 {[%clk 0:01:32.5]}
26... Kf8 {[%clk 0:01:10.6]} 27. Rhh1 {[%clk 0:01:14.6]} 27... Rc8 {[%clk
0:01:06.1]} 28. Rd3 {[%clk 0:01:14]} 28... Ke7 {[%clk 0:00:32.8]} 29. Rf3 {[%clk
0:00:50.8]} 29... Rh8 {[%clk 0:00:24.4]} 30. Qxh8 {[%clk 0:00:50.6]} 30... Rxh8
{[%clk 0:00:19.9]} 31. Rxh8 {[%clk 0:00:26.6]} 31... Qg4 {[%clk 0:00:16.1]} 32.
Rh7 {[%clk 0:00:10.5]} 32... Kf8 {[%clk 0:00:12.9]} 33. Re3 {[%clk 0:00:07.9]}
33... Qxg5 {[%clk 0:00:11.9]} 34. Rh1 {[%clk 0:00:08.1]} 34... Nf4+ {[%clk
0:00:11]} 35. Kf3 {[%clk 0:00:07.3]} 35... Ne6 {[%clk 0:00:11]} 36. Kg2 {[%clk
0:00:06.6]} 36... Nf4+ {[%clk 0:00:10.6]} 37. Kf1 {[%clk 0:00:06.7]} 37... Ne6
{[%clk 0:00:09.8]} 38. Rh8+ {[%clk 0:00:06.5]} 38... Ke7 {[%clk 0:00:08.9]} 39.
Rh5 {[%clk 0:00:07.4]} 39... Qg6 {[%clk 0:00:08]} 40. Rxd5 {[%clk 0:00:07.8]}
40... Qb1+ {[%clk 0:00:07.3]} 41. Kg2 {[%clk 0:00:08.5]} 41... Qxa2 {[%clk
0:00:07]} 42. Rf5 {[%clk 0:00:09]} 42... Kf8 {[%clk 0:00:04.6]} 43. d5 {[%clk
0:00:08.1]} 43... Nc5 {[%clk 0:00:03.9]} 44. Ne4 {[%clk 0:00:07]} 44... Nxe4
{[%clk 0:00:03.3]} 45. Rxe4 {[%clk 0:00:07.9]} 45... g6 {[%clk 0:00:03.7]} 46.
Rfe5 {[%clk 0:00:07.5]} 46... Qb3 {[%clk 0:00:03.1]} 47. d6 {[%clk 0:00:05.5]}
47... Qxc3 {[%clk 0:00:01.3]} 48. d7 {[%clk 0:00:05.5]} 1-0

[Event "Late-Titled-Tuesday-Blitz-April-30-2024"]
[Site "Chess.com"]
[Date "2024.04.30"]
[Round "8"]
[White "osielchesslover2011"]
[Black "masterofpuppets2"]
[Result "1-0"]
[WhiteElo "2248"]
[BlackElo "2450"]
[TimeControl "180+1"]
[EndTime "15:28:39 PDT"]
[Termination "osielchesslover2011 won by checkmate"]

1. e4 {[%clk 0:02:58.2]} 1... e5 {[%clk 0:03:00.1]} 2. Nf3 {[%clk 0:02:58.8]}
2... Nc6 {[%clk 0:03:00.5]} 3. Bb5 {[%clk 0:02:59.5]} 3... a6 {[%clk 0:03:01]}
4. Ba4 {[%clk 0:03:00.3]} 4... Nf6 {[%clk 0:03:01.1]} 5. O-O {[%clk 0:03:01.1]}
5... d6 {[%clk 0:03:01.7]} 6. Re1 {[%clk 0:03:01.7]} 6... Bd7 {[%clk 0:03:02.1]}
7. Bb3 {[%clk 0:03:01.9]} 7... g6 {[%clk 0:03:02.3]} 8. c3 {[%clk 0:03:01.8]}
8... Bg7 {[%clk 0:03:02]} 9. d4 {[%clk 0:03:01.8]} 9... O-O {[%clk 0:03:02.2]}
10. Nbd2 {[%clk 0:03:00]} 10... exd4 {[%clk 0:02:56.9]} 11. cxd4 {[%clk
0:02:59.4]} 11... Nb4 {[%clk 0:02:56.3]} 12. Nf1 {[%clk 0:02:57.9]} 12... c5
{[%clk 0:02:54.5]} 13. e5 {[%clk 0:02:36.8]} 13... dxe5 {[%clk 0:02:51.3]} 14.
dxe5 {[%clk 0:02:37.7]} 14... Nh5 {[%clk 0:02:46.5]} 15. Bg5 {[%clk 0:02:26.5]}
15... Qb6 {[%clk 0:02:29.6]} 16. Qxd7 {[%clk 0:02:21]} 16... Nc6 {[%clk
0:02:07.3]} 17. e6 {[%clk 0:02:16.2]} 17... fxe6 {[%clk 0:02:05]} 18. Rxe6
{[%clk 0:02:13.7]} 18... Kh8 {[%clk 0:02:04.9]} 19. Rae1 {[%clk 0:02:03.4]}
19... c4 {[%clk 0:01:58.4]} 20. Bxc4 {[%clk 0:01:59.9]} 20... Qc5 {[%clk
0:01:51.3]} 21. Bd5 {[%clk 0:01:48.3]} 21... Nb4 {[%clk 0:01:31.8]} 22. Ne3
{[%clk 0:01:27.6]} 22... Nd3 {[%clk 0:01:13.4]} 23. Be7 {[%clk 0:01:18.1]} 23...
Qa5 {[%clk 0:00:57.5]} 24. Bxf8 {[%clk 0:01:15.6]} 24... Nxe1 {[%clk 0:00:57.4]}
25. Bxg7+ {[%clk 0:00:37.3]} 25... Nxg7 {[%clk 0:00:56.6]} 26. Ng5 {[%clk
0:00:36.5]} 26... Nd3 {[%clk 0:00:42]} 27. Nc4 {[%clk 0:00:09.8]} 27... Qc5
{[%clk 0:00:32.9]} 28. Nf7+ {[%clk 0:00:07.1]} 28... Kg8 {[%clk 0:00:33.2]} 29.
h3 {[%clk 0:00:01.8]} 29... Qxf2+ {[%clk 0:00:30.4]} 30. Kh2 {[%clk 0:00:02.6]}
30... Qxf7 {[%clk 0:00:31.3]} 31. Qxf7+ {[%clk 0:00:02.2]} 31... Kxf7 {[%clk
0:00:32.2]} 32. Re3+ {[%clk 0:00:02]} 32... Kf6 {[%clk 0:00:32.7]} 33. Rxd3
{[%clk 0:00:02.3]} 33... Nf5 {[%clk 0:00:33.5]} 34. g4 {[%clk 0:00:01.4]} 34...
Ne7 {[%clk 0:00:32.9]} 35. Rf3+ {[%clk 0:00:02]} 35... Kg7 {[%clk 0:00:33.3]}
36. Bxb7 {[%clk 0:00:02]} 36... Rb8 {[%clk 0:00:32.2]} 37. Nd6 {[%clk
0:00:02.7]} 37... Ng8 {[%clk 0:00:26.5]} 38. Rf7+ {[%clk 0:00:02.9]} 38... Kh6
{[%clk 0:00:26.5]} 39. Rc7 {[%clk 0:00:03.8]} 39... Nf6 {[%clk 0:00:26.4]} 40.
Rc8 {[%clk 0:00:03.4]} 40... Rxc8 {[%clk 0:00:26.2]} 41. Nxc8 {[%clk 0:00:04.3]}
41... Ne8 {[%clk 0:00:26.1]} 42. Bxa6 {[%clk 0:00:04.2]} 42... Nc7 {[%clk
0:00:27]} 43. Bc4 {[%clk 0:00:04.5]} 43... Kg5 {[%clk 0:00:27.9]} 44. b4 {[%clk
0:00:04.7]} 44... Kf6 {[%clk 0:00:28.8]} 45. b5 {[%clk 0:00:05.3]} 45... Ke5
{[%clk 0:00:29.7]} 46. b6 {[%clk 0:00:05.7]} 46... Ne8 {[%clk 0:00:26.3]} 47. b7
{[%clk 0:00:05.9]} 47... Ke4 {[%clk 0:00:26.5]} 48. b8=Q {[%clk 0:00:05.6]}
48... Kd4 {[%clk 0:00:27.4]} 49. Nd6 {[%clk 0:00:05.1]} 49... Nxd6 {[%clk
0:00:27.2]} 50. Qxd6+ {[%clk 0:00:06]} 50... Kxc4 {[%clk 0:00:28.1]} 51. Qe7
{[%clk 0:00:06.2]} 51... g5 {[%clk 0:00:29]} 52. Qxh7 {[%clk 0:00:07.1]} 52...
Kd4 {[%clk 0:00:29.5]} 53. Qg6 {[%clk 0:00:07.8]} 53... Kc3 {[%clk 0:00:29.8]}
54. Qxg5 {[%clk 0:00:08.7]} 54... Kc2 {[%clk 0:00:30.4]} 55. h4 {[%clk
0:00:09.6]} 55... Kb2 {[%clk 0:00:31.3]} 56. h5 {[%clk 0:00:10.5]} 56... Kc2
{[%clk 0:00:32.2]} 57. h6 {[%clk 0:00:11.4]} 57... Kb2 {[%clk 0:00:33.1]} 58. h7
{[%clk 0:00:12.3]} 58... Kc2 {[%clk 0:00:34]} 59. h8=Q {[%clk 0:00:13]} 59...
Kb1 {[%clk 0:00:34.9]} 60. Qhf6 {[%clk 0:00:13.8]} 60... Kxa2 {[%clk 0:00:35.3]}
61. Qge5 {[%clk 0:00:14.7]} 61... Kb1 {[%clk 0:00:36.2]} 62. Qfd6 {[%clk
0:00:15.6]} 62... Ka2 {[%clk 0:00:37.1]} 63. Qec5 {[%clk 0:00:16]} 63... Kb1
{[%clk 0:00:38]} 64. Qdb6+ {[%clk 0:00:16.4]} 64... Ka2 {[%clk 0:00:38.9]} 65.
Qca5# {[%clk 0:00:17.3]} 1-0